{"text_format":"3","workbook":"xlsx","n_sheets":1,"sheets":["Chi phí khởi nghiệp"],"not_rendered":{"defined_names":1},"read":"whole","date_system":"1900"}

{"sheet":"Chi phí khởi nghiệp","index":0,"n_rows":120,"n_cols":4,"rows_kept":120,"merged":[[1,1,1,3],[60,1,60,3],[82,1,82,3]]}
["CHI PHÍ KHỞI NGHIỆP",null,null,"TÊN CÔNG TY, LTD"]
[null,"LƯU Ý TRƯỚC KHI SỬ DỤNG TRANG TÍNH NÀY\nHầu như tất cả mọi người đã từng khởi nghiệp đều ước tính chi phí thấp hơn thực tế, rồi phải đối mặt với nguy cơ hoạt động thiếu nguồn vốn dự trữ. Chìa khóa để tránh tình trạng khó khăn này là thực hiện nghiêm túc việc nghiên cứu và lập kế hoạch. Mẫu Chi phí khởi nghiệp của chúng tôi sẽ hướng dẫn bạn toàn bộ quy trình.\n\nBẮT ĐẦU BẰNG VIỆC ƯỚC TÍNH CHI PHÍ\nChi phí vận hành doanh nghiệp của bạn sẽ là bao nhiêu?  Chìa khóa để có được con số chính xác ở đây là lưu ý đến từng chi tiết. Đối với từng danh mục chi phí, hãy chuẩn bị danh sách mọi thứ bạn sẽ cần mua. Danh sách này bao gồm cả tài sản hữu hình (ví dụ: thiết bị, hàng tồn kho) và dịch vụ (ví dụ: tu sửa, bảo hiểm). Sau đó, xác định nơi bạn có thể mua những hàng hóa hoặc dịch vụ này. Hãy xem xét nhiều nhà cung cấp, tức là so sánh nhiều nơi để tìm giá trị tốt nhất. Đừng chỉ nhìn vào giá; điều khoản thanh toán, giao hàng, độ tin cậy và dịch vụ cũng rất quan trọng. "]
[]
[null,"CHI PHÍ KHỞI NGHIỆP"]
[null,"NHÀ XƯỞNG/BẤT ĐỘNG SẢN"," ","SỐ TIỀN"]
[null,"Mua",null,{"v":0,"d":"0.00 ₫"}]
[null,"Xây dựng",null,{"v":0,"d":"0.00 ₫"}]
[null,"Tu sửa",null,{"v":0,"d":"0.00 ₫"}]
[null,"Khác",null,{"v":0,"d":"0.00 ₫"}]
[null,"Tổng",null,{"$f":"SUBTOTAL(109,Bất_động_sản[SỐ TIỀN])","v":{"v":0,"d":"0.00 ₫"}}]
[]
[null,"CẢI TẠO TÀI SẢN THUÊ"," ","SỐ TIỀN"]
[null,"Mục 1",null,{"v":0,"d":"0.00 ₫"}]
[null,"Mục 2",null,{"v":0,"d":"0.00 ₫"}]
[null,"Mục 3",null,{"v":0,"d":"0.00 ₫"}]
[null,"Mục 4",null,{"v":0,"d":"0.00 ₫"}]
[null,"Tổng",null,{"$f":"SUBTOTAL(109,Cải_tạo[SỐ TIỀN])","v":{"v":0,"d":"0.00 ₫"}}]
[]
[null,"DANH SÁCH THIẾT BỊ SẢN XUẤT"," ","SỐ TIỀN"]
[null,"Đồ đạc",null,{"v":0,"d":"0.00 ₫"}]
[null,"Thiết bị",null,{"v":0,"d":"0.00 ₫"}]
[null,"Thiết bị cố định",null,{"v":0,"d":"0.00 ₫"}]
[null,"Máy móc",null,{"v":0,"d":"0.00 ₫"}]
[null,"Khác",null,{"v":0,"d":"0.00 ₫"}]
[null,"Tổng",null,{"$f":"SUBTOTAL(109,Vốn[SỐ TIỀN])","v":{"v":0,"d":"0.00 ₫"}}]
[]
[null,"CHI PHÍ ĐỊA ĐIỂM VÀ QUẢN TRỊ"," ","SỐ TIỀN"]
[null,"Tiền thuê",null,{"v":0,"d":"0.00 ₫"}]
[null,"Chi phí tiện ích đặt trước",null,{"v":0,"d":"0.00 ₫"}]
[null,"Phí dịch vụ pháp lý và kế toán",null,{"v":0,"d":"0.00 ₫"}]
[null,"Bảo hiểm trả trước",null,{"v":0,"d":"0.00 ₫"}]
[null,"Lương trước khi khai trương ",null,{"v":0,"d":"0.00 ₫"}]
[null,"Khác",null,{"v":0,"d":"0.00 ₫"}]
[null,"Tổng",null,{"$f":"SUBTOTAL(109,Chi_phí_quản_trị[SỐ TIỀN])","v":{"v":0,"d":"0.00 ₫"}}]
[]
[null,"HÀNG TỒN KHO ĐẦU KỲ"," ","SỐ TIỀN"]
[null,"Danh mục 1",null,{"v":0,"d":"0.00 ₫"}]
[null,"Danh mục 2",null,{"v":0,"d":"0.00 ₫"}]
[null,"Danh mục 3",null,{"v":0,"d":"0.00 ₫"}]
[null,"Danh mục 4",null,{"v":0,"d":"0.00 ₫"}]
[null,"Danh mục 5",null,{"v":0,"d":"0.00 ₫"}]
[null,"Tổng",null,{"$f":"SUBTOTAL(109,Hàng_tồn_kho_đầu_kỳ[SỐ TIỀN])","v":{"v":0,"d":"0.00 ₫"}}]
[]
[null,"CHI PHÍ QUẢNG CÁO VÀ QUẢNG BÁ"," ","SỐ TIỀN"]
[null,"Quảng cáo",null,{"v":0,"d":"0.00 ₫"}]
[null,"Biển hiệu",null,{"v":0,"d":"0.00 ₫"}]
[null,"In",null,{"v":0,"d":"0.00 ₫"}]
[null,"Đi lại/giải trí",null,{"v":0,"d":"0.00 ₫"}]
[null,"Các danh mục bổ sung/khác",null,{"v":0,"d":"0.00 ₫"}]
[null,"Tổng",null,{"$f":"SUBTOTAL(109,Chi_phí_quảng_bá[SỐ TIỀN])","v":{"v":0,"d":"0.00 ₫"}}]
[]
[null,"CHI PHÍ KHÁC"," ","SỐ TIỀN"]
[null,"Chi phí khác 1",null,{"v":0,"d":"0.00 ₫"}]
[null,"Chi phí khác 2",null,{"v":0,"d":"0.00 ₫"}]
[null,"Tổng",null,{"$f":"SUBTOTAL(109,Chi_phí_khác[SỐ TIỀN])","v":{"v":0,"d":"0.00 ₫"}}]
[]
[null,"Các khoản dự trữ dự phòng",null,{"v":0,"d":"0.00 ₫"}]
[]
[null,"Vốn lưu động ",null,{"v":0,"d":"0.00 ₫"}]
[]
[null,"THÊM KHOẢN DỰ TRỮ DỰ PHÒNG\nHãy nhớ giải thích về cách bạn quyết định số tiền dành cho việc dự phòng này. \n\nXÁC ĐỊNH DÒNG TIỀN CỦA BẠN\nBạn không thể khởi nghiệp với tài khoản ngân hàng rỗng. Bạn cần có khoản đệm tiền mặt để đáp ứng các chi phí trong khi vận hành doanh nghiệp. Cuối cùng, bạn nên chuẩn bị nội dung dự báo dòng tiền cho 12 tháng. Đây là nơi bạn sẽ ước tính các nhu cầu về vốn lưu động. Bây giờ, hãy để trống dòng này hoặc nhập con số tạm tính sát nhất có thể. Sau khi lập dòng tiền xong, bạn có thể quay lại và nhập số tiền đã được nghiên cứu một cách cẩn thận.\n\nNHẬP CÁC NGUỒN VỐN\nGiờ khi đã ước tính lượng vốn cần thiết để khởi nghiệp, bạn nên chuyển sang tập trung vào phần đầu của trang tính này. Nhập số tiền bạn sẽ tự đầu tư, số tiền các đối tác hoặc nhà đầu tư sẽ đóng góp và số tiền sẽ có được từ các nguồn vay."]
[]
[null,"CÁC NGUỒN VỐN"]
[null,"KHOẢN ĐẦU TƯ CỦA CÁC CHỦ SỞ HỮU (TÊN & % SỞ HỮU)"," ","SỐ TIỀN"]
[null,"Tên bạn và phần trăm sở hữu",null,{"v":0,"d":"0.00 ₫"}]
[null,"Nhà đầu tư khác",null,{"v":0,"d":"0.00 ₫"}]
[null,"Nhà đầu tư khác",null,{"v":0,"d":"0.00 ₫"}]
[null,"Nhà đầu tư khác",null,{"v":0,"d":"0.00 ₫"}]
[null,"Tổng",null,{"$f":"SUBTOTAL(109,Khoản_đầu_tư_của_chủ_đầu_tư[SỐ TIỀN])","v":{"v":0,"d":"0.00 ₫"}}]
[]
[null,"KHOẢN VAY NGÂN HÀNG"," ","SỐ TIỀN"]
[null,"Ngân hàng 1",null,{"v":0,"d":"0.00 ₫"}]
[null,"Ngân hàng 2",null,{"v":0,"d":"0.00 ₫"}]
[null,"Ngân hàng 3",null,{"v":0,"d":"0.00 ₫"}]
[null,"Ngân hàng 4",null,{"v":0,"d":"0.00 ₫"}]
[null,"Tổng",null,{"$f":"SUBTOTAL(109,Khoản_vay_ngân_hàng[SỐ TIỀN])","v":{"v":0,"d":"0.00 ₫"}}]
[]
[null,"KHOẢN VAY KHÁC"," ","SỐ TIỀN"]
[null,"Nguồn 1",null,{"v":0,"d":"0.00 ₫"}]
[null,"Nguồn 2",null,{"v":0,"d":"0.00 ₫"}]
[null,"Tổng",null,{"$f":"SUBTOTAL(109,Khoản_vay_khác[SỐ TIỀN])","v":{"v":0,"d":"0.00 ₫"}}]
[]
[null,"CUNG CẤP BẰNG CHỨNG THẾ CHẤP\nNếu bạn sẽ sử dụng kế hoạch này để hỗ trợ cho yêu cầu vay ngân hàng, hãy sử dụng mục gần dưới cùng để thể hiện những loại tài sản dùng để thế chấp nhằm đảm bảo cho khoản vay và ước tính giá trị của những tài sản này. Hãy chuẩn bị cung cấp một số bằng chứng cho ước tính giá trị tài sản thế chấp của bạn."]
[]
[null,"BẢN KÊ TÓM TẮT"]
[null,"NGUỒN VỐN"," ","TỔNG"]
[null,"Các khoản đầu tư của chủ sở hữu và người khác",null,{"$f":"Khoản_đầu_tư_của_chủ_đầu_tư[[#Totals],[SỐ TIỀN]]","v":{"v":0,"d":"0.00 ₫"}}]
[null,"Khoản vay ngân hàng",null,{"$f":"Khoản_vay_ngân_hàng[[#Totals],[SỐ TIỀN]]","v":{"v":0,"d":"0.00 ₫"}}]
[null,"Khoản vay khác",null,{"$f":"Khoản_vay_khác[[#Totals],[SỐ TIỀN]]","v":{"v":0,"d":"0.00 ₫"}}]
[null,"Tổng",null,{"$f":"SUBTOTAL(109,Nguồn_vốn[TỔNG])","v":{"v":0,"d":"0.00 ₫"}}]
[]
[null,"CHI PHÍ KHỞI NGHIỆP"," ","TỔNG"]
[null,"Nhà xưởng/bất động sản",null,{"$f":"Bất_động_sản[[#Totals],[SỐ TIỀN]]","v":{"v":0,"d":"0.00 ₫"}}]
[null,"Cải tạo tài sản thuê",null,{"$f":"Cải_tạo[[#Totals],[SỐ TIỀN]]","v":{"v":0,"d":"0.00 ₫"}}]
[null,"Thiết bị sản xuất",null,{"$f":"Vốn[[#Totals],[SỐ TIỀN]]","v":{"v":0,"d":"0.00 ₫"}}]
[null,"Chi phí địa điểm/quản trị",null,{"$f":"Chi_phí_quản_trị[[#Totals],[SỐ TIỀN]]","v":{"v":0,"d":"0.00 ₫"}}]
[null,"Hàng tồn kho đầu kỳ",null,{"$f":"Hàng_tồn_kho_đầu_kỳ[[#Totals],[SỐ TIỀN]]","v":{"v":0,"d":"0.00 ₫"}}]
[null,"Chi phí cho quảng cáo/quảng bá",null,{"$f":"Chi_phí_quảng_bá[[#Totals],[SỐ TIỀN]]","v":{"v":0,"d":"0.00 ₫"}}]
[null,"Chi phí khác",null,{"$f":"Chi_phí_khác[[#Totals],[SỐ TIỀN]]","v":{"v":0,"d":"0.00 ₫"}}]
[null,"Quỹ dự phòng",null,{"$f":"SUM('Chi phí khởi nghiệp'!$C$57)","v":{"v":0,"d":"0.00 ₫"}}]
[null,"Vốn lưu động",null,{"$f":"SUM('Chi phí khởi nghiệp'!$C$59)","v":{"v":0,"d":"0.00 ₫"}}]
[null,"Tổng",null,{"$f":"SUBTOTAL(109,Chi_phí_khởi_nghiệp[TỔNG])","v":{"v":0,"d":"0.00 ₫"}}]
[]
[null,"TÀI SẢN BẢO ĐẢM VÀ THẾ CHẤP CHO ĐỀ XUẤT VAY"]
[null,"TÀI SẢN THẾ CHẤP CHO KHOẢN VAY","MÔ TẢ","GIÁ TRỊ"]
[null,"Bất động sản",null,{"v":0,"d":"0.00 ₫"}]
[null,"Tài sản thế chấp khác",null,{"v":0,"d":"0.00 ₫"}]
[null,"Tài sản thế chấp khác",null,{"v":0,"d":"0.00 ₫"}]
[null,"Tài sản thế chấp khác",null,{"v":0,"d":"0.00 ₫"}]
[null,"Tổng",null,{"$f":"SUBTOTAL(109,Tài_sản_thế_chấp[GIÁ TRỊ])","v":{"v":0,"d":"0.00 ₫"}}]
[]
[null,"CHỦ SỞ HỮU"," ","  "]
[null,"Tên bạn ở đây"]
[null,"Chủ sở hữu khác"]
[null,"Chủ sở hữu khác"]
[]
[null,"NGƯỜI BẢO LÃNH KHOẢN VAY (KHÔNG PHẢI CHỦ SỞ HỮU)"," ","  "]
[null,"Người bảo lãnh khoản vay 1"]
[null,"Người bảo lãnh khoản vay 2"]
[null,"Người bảo lãnh khoản vay 3"]